bitfinex/quotes_BTCUSD_20241203
["timestamp","ask_amount","ask_price","bid_price","bid_amount"]
[1733236438057,0.15,94047.0,94041.0,0.023]
[1733236438272,0.1878083,94045.0,94041.0,0.023]
[1733236438540,0.151,94044.0,94042.0,0.023]
[1733236438803,0.15,94044.0,94042.0,0.023]
[1733236439033,0.15,94044.0,94039.0,0.19050615]
[1733236439034,0.15,94042.0,94040.0,0.2611092]
[1733236439282,0.15,94040.0,94038.0,0.009]
[1733236439511,0.15901477,94038.0,94037.0,0.2381092]
[1733236439730,0.30901477,94038.0,94037.0,0.2381092]
[1733236440137,0.15,94037.0,94036.0,0.14287332]
[1733236440374,0.30901477,94037.0,94035.0,0.33334793]
[1733236440604,0.212684,94036.0,94034.0,0.14287279]
[1733236441110,0.49682307,94035.0,94034.0,0.14287279]
[1733236441355,0.49682307,94026.0,94025.0,0.0008614]
[1733236442613,0.49782307,94026.0,94025.0,0.0098614]
[1733236443866,0.001,94026.0,94025.0,0.0098614]
[1733236444077,0.001,94026.0,94025.0,0.0328614]
[1733236444332,0.001,94026.0,94025.0,0.13757399]
[1733236444756,0.001,94026.0,94025.0,0.0328614]
[1733236444986,0.001,94026.0,94025.0,0.13757399]
[1733236447911,0.001,94026.0,94025.0,0.14976569]
[1733236448133,0.0017228,94046.0,94045.0,0.235664]
[1733236448354,0.00189928,94046.0,94045.0,0.34037659]
[1733236448809,0.00189928,94046.0,94045.0,0.45728352]
[1733236449044,0.0814,94098.0,94069.0,0.2478007]
[1733236449260,0.0814,94098.0,94069.0,0.39349852]
[1733236449476,0.1878083,94099.0,94069.0,0.39349852]
[1733236449948,0.1878083,94092.0,94069.0,0.12771259]
[1733236450184,0.1878083,94090.0,94069.0,0.10471259]
[1733236450407,0.002722,94070.0,94069.0,0.11371259]
[1733236450640,0.002722,94070.0,94069.0,0.10471259]
[1733236450844,0.152722,94070.0,94053.0,0.42529]
[1733236451115,0.153722,94070.0,94069.0,0.009]
[1733236451576,0.212637,94057.0,94054.0,0.10471259]
[1733236451786,0.6764693,94046.0,94045.0,0.21329107]
[1733236452019,0.6764693,94046.0,94025.0,0.0008614]
[1733236452020,0.5504743,94044.0,94043.0,0.01466696]
[1733236452258,0.5505063,94030.0,94029.0,0.09506509]
[1733236452488,0.15,94026.0,94025.0,0.0008614]
[1733236452719,0.49682307,94026.0,94025.0,0.0008614]
[1733236453369,0.3378083,94026.0,94025.0,0.0008614]
[1733236453599,0.212589,94079.0,93990.0,0.212868]
[1733236453600,0.15,94005.0,93998.0,0.04098523]
[1733236453835,0.3378083,94002.0,94001.0,0.10471259]
[1733236454289,0.3378083,94002.0,93995.0,0.04098523]
[1733236454290,0.1878083,93991.0,93990.0,8e-05]
[1733236454503,0.57540941,93991.0,93990.0,8e-05]
[1733236454717,0.57540941,93991.0,93982.0,0.0008623]
[1733236454718,0.37384258,93983.0,93982.0,0.0008623]
[1733236454949,0.68077737,93981.0,93970.0,4e-05]
[1733236455175,0.48817798,93981.0,93970.0,4e-05]
[1733236455408,0.59289057,93981.0,93970.0,4e-05]
[1733236456099,0.49517798,93981.0,93980.0,0.00062532]
[1733236456343,0.59989057,93981.0,93980.0,0.00062532]
[1733236456561,0.59289057,93981.0,93980.0,0.00062532]
[1733236456776,0.48834621,93948.0,93947.0,2.35721198]
[1733236457008,0.48834621,93948.0,93947.0,2.44646009]
[1733236457009,0.52674621,93948.0,93947.0,2.44646009]
[1733236457227,0.52674621,93948.0,93947.0,2.3417475]
[1733236457228,0.48834621,93948.0,93947.0,2.3417475]
[1733236457456,0.75648992,93948.0,93947.0,2.34281538]
[1733236457666,0.65177733,93948.0,93947.0,2.34281538]
[1733236457889,0.95648992,93948.0,93947.0,2.34281538]
[1733236458093,0.75707877,93948.0,93947.0,2.34281538]
[1733236458526,0.75707877,93948.0,93947.0,2.29281538]
[1733236458527,0.95707877,93948.0,93947.0,2.29281538]
[1733236458813,1.1687053,93948.0,93947.0,2.29281538]
[1733236459038,1.1687053,93948.0,93947.0,2.28346108]
[1733236459278,0.81069053,93948.0,93947.0,1.53002399]
[1733236459524,0.60837798,93941.0,93940.0,0.02024878]
[1733236459752,0.91309057,93941.0,93940.0,0.02024878]
[1733236459974,0.21740377,93941.0,93930.0,0.0009011]
[1733236460181,0.2,93938.0,93930.0,0.0009011]
[1733236460410,0.2,93933.0,93932.0,0.19958121]
[1733236460608,0.30471259,93933.0,93932.0,0.19958121]
[1733236460816,0.30912894,93933.0,93932.0,0.07765509]
[1733236461036,0.7476,93931.0,93930.0,0.0009011]
[1733236461245,0.85231259,93931.0,93930.0,0.0009011]
[1733236461467,0.2,93921.0,93908.0,0.2210726]
[1733236461674,0.30471259,93921.0,93908.0,0.2210726]
[1733236462107,0.25471259,93921.0,93908.0,0.2210726]
[1733236462848,0.26371259,93921.0,93908.0,0.2210726]
[1733236463071,0.26771259,93921.0,93908.0,0.2210726]
[1733236463309,0.973476,93924.0,93908.0,0.2210726]
[1733236463310,0.212942,93922.0,93908.0,0.2210726]
[1733236463552,0.575934,93920.0,93916.0,0.19962121]
[1733236463821,0.562953,93917.0,93916.0,0.19962121]
[1733236463995,0.66766559,93917.0,93916.0,0.19962121]
[1733236464676,0.35,93909.0,93908.0,0.2210726]
[1733236464874,1.00231259,93909.0,93908.0,0.2210726]
[1733236465524,0.25530108,93909.0,93908.0,0.2117109]
[1733236465959,0.45530108,93909.0,93908.0,0.2117109]
[1733236466428,0.46430108,93909.0,93908.0,0.2117109]
[1733236466881,0.25530108,93909.0,93908.0,0.2117109]
[1733236467099,0.46030108,93909.0,93908.0,0.2117109]
[1733236467318,0.46430108,93909.0,93908.0,0.21077889]
[1733236467534,0.78376108,93909.0,93908.0,0.21077889]
[1733236467748,1.33536108,93909.0,93908.0,0.21077889]
[1733236467970,1.33136108,93909.0,93908.0,0.21077889]
[1733236468404,1.32236108,93909.0,93908.0,0.21077889]
[1733236468821,1.33136108,93909.0,93908.0,0.21077889]
[1733236469075,1.35606707,93909.0,93908.0,0.21077889]
[1733236469284,1.34706707,93909.0,93908.0,0.21077889]
[1733236469502,0.2,93894.0,93893.0,0.00141414]
[1733236469711,0.8976,93889.0,93888.0,0.1008609]
[1733236469935,1.32177259,93889.0,93888.0,0.1008609]
[1733236470592,1.32177259,93889.0,93888.0,0.0958609]
[1733236470818,1.32053814,93889.0,93888.0,0.0958609]
[1733236471472,1.32953814,93889.0,93888.0,0.09446804]
[1733236472126,1.33830185,93889.0,93888.0,0.09446804]
[1733236472335,1.34192838,93889.0,93888.0,0.08374769]
[1733236472549,1.34192838,93889.0,93888.0,0.07528482]
[1733236472759,1.33830185,93889.0,93888.0,0.06690176]
[1733236472966,0.54555116,93869.0,93860.0,0.2]
[1733236473196,0.15,93863.0,93860.0,0.4]
[1733236473403,0.45471259,93863.0,93860.0,0.4]
[1733236473840,0.25471259,93863.0,93860.0,0.4]
[1733236474264,0.25530035,93863.0,93862.0,0.00965998]
[1733236474511,0.45530035,93863.0,93862.0,0.00965998]
[1733236474742,0.77476035,93863.0,93862.0,0.00965998]
[1733236475259,0.78376035,93863.0,93862.0,0.00965998]
[1733236475488,0.79276035,93863.0,93862.0,0.00965998]
[1733236476011,0.79638688,93863.0,93862.0,0.00965998]
[1733236476267,0.78376035,93863.0,93862.0,0.00965998]
[1733236476538,0.78738688,93863.0,93862.0,0.01052208]
[1733236477016,0.62618761,93863.0,93862.0,0.01052208]
[1733236477254,0.57787564,93863.0,93862.0,0.01052208]
[1733236477524,0.58324911,93863.0,93862.0,0.00552208]
[1733236477762,0.77424911,93863.0,93862.0,0.00552208]
[1733236477993,0.77787564,93863.0,93862.0,0.00541683]
[1733236478231,0.10471259,93865.0,93863.0,0.11312436]
[1733236478464,0.51778659,93864.0,93863.0,0.10412436]
[1733236479232,0.75326979,93864.0,93863.0,0.1027895]
[1733236479461,0.39555116,93856.0,93853.0,0.0008609]
[1733236479693,0.81987375,93856.0,93853.0,0.0008609]
[1733236479923,0.61987375,93856.0,93854.0,0.2]
[1733236480165,0.42432259,93856.0,93855.0,0.20225117]
[1733236480445,0.31961,93856.0,93855.0,0.20225117]
[1733236480716,0.32761,93856.0,93855.0,0.20325117]
[1733236480993,0.213094,93855.0,93853.0,0.0008609]
[1733236481269,0.213094,93855.0,93854.0,0.19825117]
[1733236481503,0.2,93854.0,93853.0,0.0008609]
[1733236481866,0.44216106,93854.0,93853.0,0.0008609]
[1733236482219,0.76177106,93854.0,93853.0,0.0008609]
[1733236482955,0.76577106,93854.0,93853.0,0.0008609]
[1733236483419,0.7871858,93854.0,93853.0,0.0008609]
[1733236484399,0.55056747,93844.0,93843.0,0.1944]
[1733236484642,0.65528006,93844.0,93843.0,0.1944]
[1733236484877,0.85083122,93844.0,93843.0,0.1944]
[1733236485105,1.17219005,93844.0,93843.0,0.1944]
[1733236485341,1.17219005,93844.0,93827.0,0.2]
[1733236485342,0.18744847,93828.0,93827.0,0.2]
[1733236485595,0.97667489,93828.0,93827.0,0.2]
[1733236485821,1.01947067,93828.0,93827.0,0.2]
[1733236486057,1.01947067,93828.0,93827.0,0.05]
[1733236486741,0.99491638,93828.0,93827.0,0.04915567]
[1733236486962,0.52022961,93820.0,93819.0,0.18629656]
[1733236487196,0.9445522,93820.0,93819.0,0.1735342]
[1733236487419,0.94280337,93820.0,93819.0,0.1735342]
[1733236487868,0.25471259,93820.0,93819.0,0.1735342]
[1733236488122,0.48945469,93820.0,93819.0,0.1735342]
[1733236488350,0.49045469,93820.0,93819.0,0.1735342]
[1733236488573,0.81021469,93820.0,93819.0,0.1735342]
[1733236488795,0.80921469,93820.0,93819.0,0.1965342]
[1733236489270,0.80921469,93820.0,93819.0,0.1975342]
[1733236489271,0.81821469,93820.0,93819.0,0.1975342]
[1733236489531,0.81821469,93820.0,93819.0,0.1745342]
[1733236489798,0.8622503,93820.0,93819.0,0.1735342]
[1733236490048,0.82820089,93820.0,93819.0,0.1745342]
[1733236490533,0.82820089,93820.0,93811.0,0.2]
[1733236490534,0.21319,93813.0,93811.0,0.11476714]
[1733236490776,0.25471259,93812.0,93800.0,0.14855]
[1733236490996,0.46792259,93804.0,93800.0,0.14855]
[1733236491232,0.78768259,93804.0,93800.0,0.14855]
[1733236491471,0.8517044,93804.0,93790.0,4.077e-05]
[1733236491703,0.15,93795.0,93790.0,4.077e-05]
[1733236491931,0.46794559,93794.0,93790.0,4.077e-05]
[1733236492154,0.46794559,93794.0,93790.0,7.7e-07]
[1733236492155,0.25471259,93791.0,93790.0,7.7e-07]
[1733236492382,0.14996,93790.0,93787.0,0.14890767]
[1733236492600,0.10471259,93788.0,93787.0,0.13206364]
[1733236492830,0.42447259,93788.0,93787.0,0.11073864]
[1733236493054,0.213249,93787.0,93780.0,4.98189033]
[1733236493298,0.31797459,93781.0,93780.0,4.98189033]
[1733236493993,0.31797459,93781.0,93780.0,4.92192902]
[1733236494448,0.33926004,93781.0,93780.0,4.92192902]
[1733236494716,0.48926004,93781.0,93780.0,4.92192902]
[1733236494953,0.49826004,93781.0,93780.0,4.94492902]
[1733236495182,0.48926004,93781.0,93780.0,4.94492902]
[1733236495414,0.48926004,93781.0,93780.0,4.92192902]
[1733236495909,0.49726004,93781.0,93780.0,4.92192902]
[1733236496362,0.48926004,93781.0,93780.0,4.94496902]
[1733236496586,0.49582821,93781.0,93780.0,4.91345587]
[1733236496815,0.49582821,93781.0,93780.0,4.86175944]
[1733236497044,0.82458821,93781.0,93780.0,4.86175944]
[1733236497518,0.82458821,93781.0,93780.0,4.88475944]
[1733236497759,0.67458821,93781.0,93780.0,5.08475944]
[1733236497990,0.63530276,93781.0,93780.0,5.13305944]
[1733236498255,0.65330276,93781.0,93780.0,5.13305944]
[1733236498488,0.64353295,93781.0,93780.0,4.93305944]
[1733236498718,0.63453295,93781.0,93780.0,4.93305944]
[1733236498954,0.64353295,93781.0,93780.0,4.93215944]
[1733236499191,0.80253295,93781.0,93780.0,4.88385944]
[1733236499665,0.79353295,93781.0,93780.0,4.88385944]
[1733236499902,0.80253295,93781.0,93780.0,4.88385944]
[1733236500368,0.79353295,93781.0,93780.0,4.86172224]
[1733236500827,0.80253295,93781.0,93780.0,4.9875537]
[1733236501111,0.39767294,93781.0,93780.0,5.2647537]
[1733236501341,0.39767294,93781.0,93780.0,5.31986722]
[1733236501342,0.00778151,93781.0,93780.0,5.31986722]
[1733236501600,0.01678151,93781.0,93780.0,5.30150514]
[1733236501861,0.02087835,93801.0,93797.0,0.2]
[1733236502085,0.02087835,93801.0,93799.0,0.2]
[1733236502086,0.31793259,93800.0,93799.0,0.2]
[1733236502321,0.213235,93793.0,93792.0,0.191]
[1733236502549,0.31794759,93793.0,93792.0,0.191]
[1733236502775,0.10471259,93793.0,93781.0,0.2001126]
[1733236503011,0.213245,93789.0,93785.0,0.191]
[1733236503236,0.10471259,93788.0,93781.0,0.0001126]
[1733236503465,0.363249,93787.0,93781.0,0.0001126]
[1733236503726,0.362353,93785.0,93784.0,0.191]
[1733236503947,0.213255,93784.0,93783.0,0.189]
[1733236504180,0.31796759,93784.0,93781.0,0.0001126]
[1733236504406,0.1491,93785.0,93781.0,0.0001126]
[1733236504407,0.10471259,93783.0,93781.0,0.0001126]
[1733236504639,0.21326,93782.0,93781.0,0.0001126]
[1733236505060,0.31797259,93782.0,93781.0,0.1891126]
[1733236505062,0.10471259,93782.0,93781.0,0.1891126]
[1733236505469,0.10471259,93782.0,93781.0,0.284213]
[1733236505677,0.007,93784.0,93783.0,0.2377]
[1733236505871,0.007,93784.0,93783.0,0.2287]
[1733236506072,0.213216,93802.0,93792.0,0.18]
[1733236506278,0.11559468,93793.0,93792.0,0.2685]
[1733236506605,0.21732686,93806.0,93792.0,0.2685]
[1733236506606,0.21732686,93806.0,93805.0,0.175]
[1733236506826,0.426385,93812.0,93811.0,0.175]
[1733236507044,0.19555116,93812.0,93811.0,0.175]
[1733236507276,0.213154,93829.0,93823.0,0.2561]
[1733236507520,0.40868216,93839.0,93828.0,0.169]
[1733236507728,0.213135,93837.0,93836.0,0.169]
[1733236508146,0.10471259,93837.0,93836.0,0.1610585]
[1733236508358,0.12628858,93837.0,93836.0,0.1610585]
[1733236508571,0.10471259,93837.0,93836.0,0.17716435]
[1733236508788,0.10471259,93837.0,93836.0,0.19901164]
[1733236509006,0.06745116,93861.0,93860.0,0.2423]
[1733236509214,0.17216375,93861.0,93860.0,0.2423]
[1733236509426,0.21304,93879.0,93877.0,0.161]
[1733236509634,0.09548454,93878.0,93877.0,0.156]
[1733236509840,0.11644743,93878.0,93877.0,0.156]
[1733236510284,0.02096289,93878.0,93877.0,0.156]
[1733236510744,0.15,93877.0,93876.0,0.156]
[1733236510947,0.10471259,93877.0,93873.0,0.156]
[1733236511162,0.10471259,93876.0,93874.0,0.15]
[1733236511682,0.10471259,93876.0,93875.0,0.15]
[1733236511879,0.10471259,93876.0,93874.0,0.15]
[1733236512110,0.10471259,93876.0,93875.0,0.15]
[1733236512111,0.25471259,93876.0,93875.0,0.15]
[1733236512344,0.25471259,93876.0,93874.0,0.15]
[1733236512345,0.15,93875.0,93874.0,0.15]
[1733236512563,0.25471259,93875.0,93874.0,0.15]
[1733236512787,0.25471259,93875.0,93874.0,0.14504]
[1733236513039,0.15,93873.0,93871.0,5.85e-05]
[1733236513247,0.15,93858.0,93854.0,0.2]
[1733236513458,0.01087982,93875.0,93831.0,0.049]
[1733236513459,0.15,93846.0,93845.0,0.2]
[1733236513676,0.15,93845.0,93844.0,0.14504]
[1733236514131,0.25471259,93845.0,93844.0,0.14504]
[1733236514347,0.15,93845.0,93844.0,0.14504]
[1733236514569,0.15,93859.0,93854.0,0.14504]
[1733236514777,0.25471259,93858.0,93856.0,0.14504]
[1733236514989,0.25471259,93858.0,93851.0,0.14504]
[1733236514990,0.0212992,93855.0,93851.0,0.14504]
[1733236515235,0.25471259,93854.0,93853.0,0.14504]
[1733236515681,0.15,93854.0,93853.0,0.14504]
[1733236516131,0.15,93854.0,93853.0,0.34504]
[1733236516345,0.213057,93872.0,93853.0,0.34504]
[1733236516346,0.02162793,93866.0,93865.0,0.14504]
[1733236516575,0.17457,93866.0,93863.0,0.2]
[1733236517287,0.17457,93866.0,93865.0,0.2]
[1733236517537,0.17457,93866.0,93865.0,0.398]
[1733236517730,0.00017627,93873.0,93872.0,0.2]
[1733236517940,0.00017627,93873.0,93872.0,0.44557]
[1733236518155,0.00017627,93873.0,93872.0,0.24557]
[1733236518597,0.00017627,93873.0,93872.0,0.198]
[1733236519247,0.00017627,93873.0,93872.0,0.205]
[1733236519446,0.00017627,93873.0,93872.0,0.206]
[1733236520067,0.0017256,93889.0,93888.0,0.198]
[1733236520278,0.00231511,93889.0,93888.0,0.4779]
[1733236520489,4e-05,93920.0,93894.0,0.2]
[1733236520693,0.00021678,93920.0,93915.0,0.198]
[1733236520902,0.00021678,93920.0,93919.0,0.198]
[1733236521134,0.00021678,93920.0,93919.0,0.2786]
[1733236521345,0.0017264,93931.0,93919.0,0.2786]
[1733236521346,0.0017264,93931.0,93928.0,0.2]
[1733236521555,0.0017264,93931.0,93930.0,0.198]
[1733236521759,0.0017264,93931.0,93930.0,0.30271259]
[1733236521974,0.0017264,93931.0,93930.0,0.198]
[1733236522596,0.0017264,93931.0,93930.0,0.30271259]
[1733236523019,0.212828,93973.0,93938.0,0.2]
[1733236523225,0.212828,93973.0,93962.0,0.198]
[1733236523226,0.10471259,93968.0,93962.0,0.198]
[1733236523436,0.21284,93967.0,93962.0,0.198]
[1733236523656,0.212801,93985.0,93962.0,0.198]
[1733236523861,0.212798,93986.0,93968.0,0.198]
[1733236524084,0.06745116,93999.0,93968.0,0.39748865]
[1733236524281,0.06745116,93999.0,93968.0,0.43723752]
[1733236524282,0.02158732,93976.0,93968.0,0.43723752]
[1733236524494,0.00190318,93969.0,93968.0,0.43723752]
[1733236524945,0.00190318,93969.0,93968.0,0.54195011]
[1733236525153,0.00190318,93969.0,93968.0,0.74195011]
[1733236525414,0.00190318,93969.0,93968.0,0.74495011]
[1733236525869,0.36279772,94010.0,93982.0,0.19748865]
[1733236526094,0.212739,94012.0,93982.0,0.43723752]
[1733236526517,0.212723,94019.0,93982.0,0.54195011]
[1733236526792,0.212723,94019.0,94011.0,0.19748865]
[1733236527015,0.10471259,94018.0,94011.0,0.19748865]
[1733236527241,0.212709,94025.0,94019.0,0.19748865]
[1733236527456,0.212694,94032.0,94027.0,0.19748865]
[1733236527679,0.212712,94024.0,94023.0,0.19748865]
[1733236527894,0.212697,94031.0,94030.0,0.19748865]
[1733236528135,0.212679,94039.0,94031.0,0.19748865]
[1733236528351,0.212679,94039.0,94003.0,0.2]
[1733236528352,0.212688,94035.0,94032.0,0.19748865]
[1733236528563,0.02123115,94040.0,94034.0,0.19748865]
[1733236528778,0.212682,94037.0,94034.0,0.19748865]
[1733236528984,0.31739459,94037.0,94034.0,0.19748865]
[1733236529195,0.31739459,94037.0,94035.0,0.01974886]
[1733236529416,0.23349447,94047.0,94046.0,0.19748865]
[1733236529840,0.23349447,94047.0,94034.0,0.19748865]
[1733236529841,0.15,94035.0,94034.0,0.19748865]
[1733236530056,0.15,94035.0,94002.0,0.2]
[1733236530057,0.15,94016.0,94015.0,0.19748865]
[1733236530517,0.57546472,94044.0,94015.0,0.19748865]
[1733236530518,0.36279772,94044.0,94015.0,0.19748865]
[1733236530715,0.212637,94057.0,94038.0,0.19748865]
[1733236530931,0.10471259,94056.0,94051.0,0.19748865]
[1733236531149,0.06745116,94064.0,94054.0,0.19748865]
[1733236531375,0.31733959,94062.0,94057.0,0.19748865]
[1733236531579,0.31733959,94062.0,94039.0,0.01974886]
[1733236531580,0.01093053,94065.0,94062.0,0.19748865]
[1733236531808,0.06745116,94069.0,94062.0,0.19748865]
[1733236532038,0.00526416,94063.0,94062.0,0.19748865]
[1733236532289,0.00190197,94063.0,94062.0,0.19748865]
[1733236532508,0.02138765,94093.0,94079.0,0.19748865]
[1733236532725,0.06745116,94105.0,94092.0,0.19748865]
[1733236532940,0.00406551,94092.0,94091.0,0.19748865]
[1733236533197,0.00406551,94096.0,94095.0,0.39748865]
[1733236533417,0.00350205,94096.0,94095.0,0.19748865]
[1733236533634,0.00350205,94096.0,94095.0,0.21723751]
[1733236534263,0.0040905,94096.0,94095.0,0.21723751]
[1733236535355,0.0017226,94121.0,94120.0,0.19748865]
[1733236535627,0.00189909,94121.0,94120.0,0.19748865]
[1733236536276,0.00189909,94121.0,94120.0,0.30220124]
[1733236536491,0.00189909,94121.0,94120.0,0.26895897]
[1733236536730,0.00189909,94121.0,94120.0,0.26362564]
[1733236536945,0.00189909,94121.0,94120.0,0.19215532]
[1733236536946,0.21439109,94121.0,94120.0,0.19215532]
[1733236537396,0.22153032,94121.0,94119.0,0.19215532]
[1733236537603,0.21251,94113.0,94112.0,0.19215532]
[1733236537818,0.10471259,94113.0,94106.0,0.19215532]
[1733236538040,0.10471259,94113.0,94102.0,0.19215532]
[1733236538041,0.173,94106.0,94102.0,0.19215532]
[1733236538247,0.173,94106.0,94070.0,0.2]
[1733236538248,0.173,94104.0,94103.0,0.19215532]
[1733236538470,0.15,94102.0,94099.0,0.19215532]
[1733236538684,0.173,94098.0,94096.0,0.19215532]
[1733236538893,0.49025859,94097.0,94096.0,0.19215532]
[1733236539100,0.28475997,94097.0,94096.0,0.21137085]
[1733236539312,0.18004738,94097.0,94096.0,0.21137085]
[1733236539795,0.18004738,94097.0,94061.0,0.2]
[1733236539796,0.023,94095.0,94085.0,0.19215532]
[1733236540040,0.023,94095.0,94037.0,0.212682]
[1733236540041,0.38558,94082.0,94081.0,0.19215532]
[1733236540259,0.023,94074.0,94072.0,0.19215532]
[1733236540469,0.023,94074.0,94042.0,0.212668]
[1733236540470,0.212603,94072.0,94047.0,0.2]
[1733236540671,0.15,94059.0,94048.0,0.02]
[1733236540938,0.15,94059.0,94048.0,0.0015]
[1733236541142,0.15,94057.0,94036.0,0.042589]
[1733236541363,0.15,94038.0,94028.0,0.2]
[1733236541572,0.15,94029.0,94028.0,0.10471259]
[1733236541783,0.15235305,94029.0,94028.0,0.30471259]
[1733236541995,0.15693566,94029.0,94028.0,0.30471259]
[1733236542210,0.28362034,94029.0,94006.0,0.00058845]
[1733236542425,0.36279772,94020.0,94012.0,0.042598]
[1733236542647,0.15235349,94019.0,94017.0,0.212727]
[1733236542860,0.15235349,94019.0,94018.0,0.50471259]
[1733236542861,0.15697076,94019.0,94018.0,0.50471259]
[1733236543076,0.12637206,94019.0,94018.0,0.50471259]
[1733236543286,0.1194013,94019.0,94018.0,0.59773035]
[1733236543515,0.1194013,94019.0,94018.0,0.19773035]
[1733236543735,0.00235328,94027.0,94018.0,0.10471259]
[1733236543959,0.36279772,94028.0,94009.0,0.2]
[1733236543960,0.212711,94024.0,94009.0,0.2]
[1733236544190,0.21506751,94023.0,94010.0,0.30471259]
[1733236544403,0.36279772,94017.0,94007.0,0.02006285]
[1733236544610,0.36279772,94017.0,94000.0,4e-05]
[1733236544611,0.212741,94011.0,94000.0,4e-05]
[1733236544846,0.1520387,94010.0,94000.0,4e-05]
[1733236545039,0.023,94008.0,94000.0,4e-05]
[1733236545256,0.49281694,94007.0,94000.0,4e-05]
[1733236545473,0.6229794,94007.0,94000.0,4e-05]
[1733236545697,0.30551681,94007.0,94000.0,4e-05]
[1733236545927,0.28251681,94007.0,94000.0,4e-05]
[1733236546381,0.30551681,94007.0,94000.0,4e-05]
[1733236547254,0.28251681,94007.0,94000.0,4e-05]
[1733236547723,0.28251681,94007.0,94006.0,0.10530104]
[1733236547963,0.13251681,94007.0,94006.0,0.33883514]
[1733236548185,0.13251681,94007.0,94006.0,0.53883514]
[1733236548186,0.13117473,94007.0,94006.0,0.53883514]
[1733236548407,0.00235335,94048.0,94023.0,0.2]
[1733236548650,0.00235298,94059.0,94033.0,0.2]
[1733236548856,0.36279772,94043.0,94039.0,0.2]
[1733236549067,0.00235279,94042.0,94040.0,0.13518385]
[1733236549300,0.36279772,94043.0,94042.0,0.00235279]
[1733236549506,0.36279772,94070.0,94056.0,0.2]
[1733236549721,0.36279772,94070.0,94057.0,0.32471259]
[1733236549722,0.00235233,94069.0,94057.0,0.32471259]
[1733236549938,0.0017214,94096.0,94067.0,0.2]
[1733236550152,0.36279772,94090.0,94078.0,0.2]
[1733236550371,0.00235177,94089.0,94079.0,0.10471259]
[1733236550581,0.21491677,94089.0,94079.0,0.10471259]
[1733236550823,0.00235177,94089.0,94080.0,0.03047126]
[1733236551030,0.0017214,94096.0,94088.0,0.02081286]
[1733236551266,0.0017214,94096.0,94089.0,0.10471259]
[1733236551477,0.0017224,94114.0,94107.0,0.2]
[1733236551686,0.0017224,94114.0,94110.0,0.2]
[1733236551899,0.0017224,94114.0,94111.0,0.15643615]
[1733236552506,0.00189889,94114.0,94111.0,0.15643615]
[1733236552695,0.00189889,94114.0,94111.0,0.05172356]
[1733236552850,0.00189889,94114.0,94100.0,0.212539]
[1733236553069,0.00189889,94114.0,94106.0,0.2]
[1733236553280,0.00189889,94114.0,94110.0,0.2]
[1733236553510,0.00189889,94114.0,94113.0,0.2]
[1733236553733,0.00189889,94114.0,94113.0,0.30471259]
[1733236553936,0.00189889,94114.0,94113.0,0.07172246]
[1733236554143,0.00189889,94114.0,94103.0,0.2]
[1733236554358,0.36279772,94112.0,94110.0,0.008]
[1733236554553,0.10706408,94111.0,94110.0,0.008]
[1733236554763,0.10706408,94111.0,94063.0,0.2]
[1733236554764,0.06745116,94109.0,94063.0,0.2]
[1733236555047,0.212587,94079.0,94064.0,0.14797559]
[1733236555219,0.36279772,94080.0,94064.0,0.14797559]
[1733236555220,0.00185202,94078.0,94065.0,0.2]
[1733236555416,0.00185202,94078.0,94066.0,0.10471259]
[1733236555645,0.00185202,94078.0,94069.0,0.2]
[1733236555840,0.00185202,94078.0,94070.0,0.13951015]
[1733236556088,0.023,94098.0,94070.0,0.13951015]
[1733236556317,0.15,94079.0,94071.0,0.10471259]
[1733236556493,0.00235189,94078.0,94072.0,0.212603]
[1733236556740,0.15,94079.0,94074.0,0.212598]
[1733236556964,0.15,94079.0,94078.0,0.2]
[1733236557178,0.15,94079.0,94078.0,0.10471259]
[1733236557397,0.1523518,94087.0,94078.0,0.13518385]
[1733236558358,0.1473518,94087.0,94081.0,0.2]
[1733236558611,0.0009968,94093.0,94083.0,0.212578]
[1733236558916,0.0009968,94093.0,94081.0,0.41258]
[1733236558917,0.0009968,94093.0,94092.0,0.2]
[1733236559091,0.0009968,94093.0,94092.0,0.30471259]
[1733236559351,0.00017643,94098.0,94096.0,0.2]
[1733236559579,0.00017643,94098.0,94097.0,0.30471259]
[1733236559800,0.00017643,94098.0,94097.0,0.29129157]
[1733236560019,0.00017643,94098.0,94097.0,0.28942204]
[1733236560724,0.02186086,94098.0,94097.0,0.28942204]
[1733236560949,0.0017226,94121.0,94113.0,0.39721945]
[1733236561164,0.0017226,94121.0,94113.0,0.50193204]
[1733236561595,0.0017226,94121.0,94113.0,0.48882149]
[1733236561808,0.0017226,94121.0,94113.0,0.36644504]
[1733236562031,0.0017226,94121.0,94113.0,0.10471259]
[1733236562032,0.00356229,94121.0,94113.0,0.10471259]
[1733236562259,0.0017226,94121.0,94113.0,0.12605009]
[1733236562481,0.0017226,94121.0,94113.0,0.30664899]
[1733236562744,0.0017226,94121.0,94113.0,0.2643157]
[1733236562964,0.0017226,94121.0,94113.0,0.2733157]
[1733236563205,0.36378692,94140.0,94113.0,0.2733157]
[1733236563206,0.023,94133.0,94118.0,0.15027674]
[1733236563425,0.023,94128.0,94113.0,0.009]
[1733236563676,0.15,94128.0,94114.0,0.10471259]
[1733236563896,0.212505,94116.0,94113.0,0.009]
[1733236564111,0.046,94129.0,94093.0,0.1289328]
[1733236564112,0.212518,94110.0,94093.0,0.1289328]
[1733236564346,0.36279772,94110.0,94094.0,0.15886187]
[1733236564565,0.36279772,94110.0,94075.0,0.1289328]
[1733236564797,0.212564,94089.0,94079.0,0.10471259]
[1733236565020,0.212576,94084.0,94061.0,0.1289328]
[1733236565267,0.212576,94084.0,94067.0,0.12730346]
[1733236565505,0.07269654,94100.0,94068.0,0.10471259]
[1733236565729,0.36279772,94110.0,94073.0,0.12730346]
[1733236565730,0.0009881,94089.0,94073.0,0.12730346]
[1733236565948,0.0009881,94089.0,94078.0,0.007]
[1733236566173,0.15,94088.0,94079.0,0.10471259]
[1733236566387,0.362596,94075.0,94074.0,0.02338974]
[1733236566637,0.362596,94075.0,94074.0,0.00058845]
[1733236567321,0.385596,94075.0,94074.0,0.00058845]
[1733236567552,0.08784219,94065.0,94031.0,0.11215781]
[1733236567791,0.08784219,94065.0,94026.0,0.212705]
[1733236567792,0.023,94073.0,94047.0,0.212659]
[1733236568004,0.023,94073.0,94048.0,0.35029464]
[1733236568221,0.023,94073.0,94051.0,0.11215781]
[1733236568449,0.023,94073.0,94058.0,0.11215781]